Cogmind - Beta 12 @@@ ROGUE MODE // 2023.08.30 @ 20:24:52 Player: 3.14 Result: Self-destructed Performance ------------- Evolutions (1) 500 Regions Visited (2) 400 Robots Destroyed (52) 260 Value Destroyed (1218) 1218 Prototype IDs (5) 100 Alien Tech Used (0) 0 Bonus (-103) -103 TOTAL SCORE: 2375 Bonus ------- High Alert Combat Kills 2 Friendly Fire -105 Cogmind --------- Core Integrity 271/400 Matter 300/300 Energy 265/265 System Corruption 3% Temperature Cool (0) Movement Treading (160) Location -9/Materials Parts ------- > --- POWER (1) -------- Improved Ion Engine > --- PROPULSION (3) --- Light Treads Light Treads Improved Treads > --- UTILITY (3) ------ Cooling System High-capacity Storage Unit > --- WEAPON (2) ------- Heavy Assault Rifle Katana > --- INVENTORY (20) --- Ion Engine Light Treads Light Treads Aerolev Unit Aerolev Unit Aerolev Unit Aerolev Unit Cooling System Sensor Array Light EM Pulse Cannon Light EM Pulse Cannon Advanced Beam Cannon Advanced Beam Cannon Autogun Autogun Light Cannon Rocket Launcher Rocket Launcher Improved Datajack Maul Peak State ------------ > --- POWER ------------ Improved Ion Engine > --- PROPULSION ------- Light Treads Light Treads Improved Treads > --- UTILITY ---------- Cooling System High-capacity Storage Unit Light Armor Plating > --- WEAPON ----------- Heavy Assault Rifle Katana > --- INVENTORY -------- Ion Engine Light Treads Light Treads Aerolev Unit Aerolev Unit Aerolev Unit Cooling System Sensor Array Light EM Pulse Cannon Light EM Pulse Cannon Advanced Beam Cannon Advanced Beam Cannon Autogun Autogun Light Cannon Rocket Launcher Rocket Launcher Improved Datajack Maul [Rating: 19] Favorites ----------- Power Ion Engine Engine Ion Engine Propulsion Light Treads Treads Light Treads Leg Aluminum Leg Utility High-capacity Storage Unit Device Cooling System Storage High-capacity Storage Unit Processor Targeting Computer Protection Light Armor Plating Weapon Medium Laser Energy Gun Medium Laser Energy Cannon Advanced Beam Cannon Ballistic Gun Light Assault Rifle Ballistic Cannon Light Cannon Slashing Weapon Katana Build | -11 -10 -9 ------- Run | Jun Mat Mat Slots Evolved 2 | . . 2 Power . | . . . Propulsion 1 | . . 1 Utility 1 | . . 1 Weapon . | . . . Parts Attached 41 | 1 13 27 Power 4 | . 2 2 Engine 4 | . 2 2 Core . | . . . Reactor . | . . . Propulsion 16 | . 6 10 Treads 12 | . 2 10 Leg 4 | . 4 . Wheel . | . . . Hover . | . . . Flight . | . . . Utility 8 | . 4 4 Device 2 | . 1 1 Storage 2 | . 2 . Processor 1 | . 1 . Hackware . | . . . Protection 3 | . . 3 Artifact . | . . . Weapon 13 | 1 1 11 Energy Gun 2 | . . 2 Energy Cannon 2 | . . 2 Ballistic Gun 5 | 1 . 4 Ballistic Cannon 3 | . 1 2 Launcher . | . . . Special Weapon . | . . . Impact Weapon . | . . . Slashing Weapon 1 | . . 1 Piercing Weapon . | . . . Special Melee Weapon . | . . . Unidentified Prototypes 1 | . . 1 Parts Lost 4 | . . 4 Power . | . . . Propulsion 2 | . . 2 Utility 1 | . . 1 Weapon 1 | . . 1 Highest Loss Streak 3 | . . 3 To Critical Strikes 1 | . . 1 Average Slot Usage (%) 98 | . 99 98 Engine 12 | . 14 11 Treads 19 | . 7 32 Leg 11 | . 20 . Device 6 | . 3 11 Storage 12 | . 14 11 Processor 5 | . 9 . Protection 4 | . . 9 Energy Gun 10 | . 14 5 Energy Cannon 1 | . . 3 Ballistic Gun 8 | . 9 7 Ballistic Cannon 3 | . 4 1 Slashing Weapon 1 | . . 2 Naked Turns . | . . . Heaviest Build 59 | 13 51 59 Greatest Support 63 | 20 40 63 Greatest Overweight (x) 4 | . 4 . Average Overweight (x) . | . 1 . Largest Inventory Capacity 20 | 8 20 20 Average Capacity 19 | 8 18 20 Most Carried 20 | 6 20 20 Average Carried 17 | 6 14 19 Final Capacity 20 | 8 20 20 Final Carried 20 | 6 19 20 Class Distribution -------------------- 85% | Mutant 14% | Scavenger-Mutant Dominant Class ---------------- Mutant | -10/Materials Mutant | -9/Materials Resources | -11 -10 -9 ----------- Run | Jun Mat Mat Matter Collected 884 | 200 263 421 Remotely . | . . . Salvage Created 1681 | . 625 1056 Parts 106 | . 37 69 Haulers Intercepted 3 | . 2 1 Recyclers Shooed 6 | . 4 2 Parts Field Recycled . | . . . Retrieved Matter . | . . . Parts Self-Destructed . | . . . Prevented . | . . . Kills | -11 -10 -9 ------- Run | Jun Mat Mat Combat Hostiles Destroyed 40 | . 15 25 Melee 1 | . . 1 Guns 26 | . 10 16 Cannons 13 | . 5 8 Classes Destroyed 10 | . 5 5 Tunneler 1 | . . 1 Hauler 3 | . 2 1 Recycler 3 | . 2 1 Mechanic 1 | . . 1 Operator 3 | . 1 2 Watcher 1 | . . 1 Swarmer 15 | . 6 9 Grunt 17 | . 9 8 Duelist 1 | . . 1 Sentry 7 | . . 7 Best Kill Streak 4 | . 3 4 Combat Bots Only 4 | . 3 4 Max Kills in Single Turn 1 | . 1 1 Gunslinging . | . . . Exploded . | . . . Melee 1 | . . 1 Uniques/NPCs Destroyed . | . . . Combat | -11 -10 -9 -------- Run | Jun Mat Mat Damage Taken 1679 | . 561 1118 Core 222 | . 93 129 Absorbed by Shields . | . . . Regen/Repaired (Parts) 126 | . . 126 Core Remaining (%) 81 | 100 62 . Volleys Fired 131 | . 59 72 Largest 2 | . 2 2 Hottest 130 | . 85 130 Shots Fired 253 | . 118 135 Gun 191 | . 92 99 Cannon 62 | . 26 36 Launcher . | . . . Special . | . . . Kinetic 123 | . 59 64 Thermal 130 | . 59 71 Explosive . | . . . Electromagnetic . | . . . Robot Hit Streak 19 | . 9 19 Robot Miss Streak 6 | . 3 6 Penetration Max . | . . . Secondary Targets 2 | . 2 . Max Gunslinging Chain 1 | . 1 . Shots Hit Robots 177 | . 80 97 Core Hits 95 | . 34 61 Critical Kills . | . . . Critical Parts Destroyed 1 | . 1 . Critical Strikes 6 | . 3 3 Burn 4 | . 2 2 Destroy 1 | . 1 . Sever 1 | . . 1 Melee Attacks 21 | . . 21 Impact . | . . . Slashing 21 | . . 21 Piercing . | . . . Sneak Attacks 6 | . . 6 Combat Hostiles . | . . . Follow-up Attacks . | . . . Damage Inflicted 3148 | . 1107 2041 Guns 1535 | . 713 822 Cannons 802 | . 366 436 Explosions . | . . . Melee 745 | . . 745 Ramming 66 | . 28 38 Kinetic 1116 | . 551 565 Thermal 1221 | . 528 693 Explosive . | . . . Electromagnetic . | . . . Impact . | . . . Slashing 745 | . . 745 Piercing . | . . . Highest Corruption 3 | . . 3 Average Corruption 3 | . . 3 Corruption Purged . | . . . Corruption Blocked . | . . . Effects 19 | . . 19 Message Errors 4 | . . 4 Matter Fused 4 | . . 4 Heat Flow Errors 3 | . . 3 Energy Discharges 1 | . . 1 Parts Rejected 1 | . . 1 Data Loss (minor) 2 | . . 2 Data Loss (major) 2 | . . 2 Alerts 1 | . . 1 Weapon Failures 1 | . . 1 Overload Shots . | . . . Overflow Damage 48 | . . 48 Projectiles . | . . . Explosions . | . . . Melee 48 | . . 48 Knockbacks 5 | . 3 2 Impact 1 | . 1 . Kinetic 4 | . 2 2 Secondary . | . . . Self-Inflicted Damage . | . . . Shots . | . . . Rammed 5 | . 2 3 Targets Rammed 12 | . 8 4 Kicked 6 | . 6 . Crushed 1 | . . 1 Highest Temperature 254 | . 254 172 Average Temperature 48 | . 62 20 Received Heat Transfer 597 | . 243 354 Siege Activations . | . . . Robots Corrupted . | . . . Combat Hostiles . | . . . Parts Fried . | . . . Impact Corruptions . | . . . Robots Melted . | . . . Combat Hostiles . | . . . Parts Melted 6 | . 2 4 Heat Transferred 3166 | . 1702 1464 Parts Sabotaged . | . . . Parts Stolen . | . . . Parts Stripped . | . . . Power Chain Reactions . | . . . Missiles Intercepted . | . . . Alert | -11 -10 -9 ------- Run | Jun Mat Mat Peak Influence 420 | . 170 420 Initial 58 | . . 58 Average 151 | . 46 273 Maximum Alert Level 2 | . . 2 Low Security (%) 69 | 100 100 33 Level 1 20 | . . 43 Level 2 10 | . . 22 Level 3 . | . . . Level 4 . | . . . Level 5 . | . . . High Security . | . . . Max Security . | . . . Squads Dispatched 4 | . 2 2 Investigation 2 | . 1 1 Extermination . | . . . Reinforcement 2 | . 1 1 Assault . | . . . Garrison . | . . . Intercept . | . . . Searches Triggered . | . . . Construction Impeded . | . . . Haulers Reinforced . | . . . Active Scanning Responses . | . . . Cargo Convoy Interrupts . | . . . Stealth | -11 -10 -9 --------- Run | Jun Mat Mat Distress Signals 7 | . 4 3 Communications Jammed . | . . . Distress Signals . | . . . Times Spotted 81 | . 37 44 Peak Tracking Total 8 | . 4 8 Tactical Retreats 5 | . . 5 Traps | -11 -10 -9 ------- Run | Jun Mat Mat Traps Triggered 2 | . 1 1 Indirectly . | . . . Trap Hack Attempts . | . . . Triggered . | . . . Disarmed . | . . . Reprogrammed . | . . . Reused . | . . . Traps Extracted . | . . . Installed . | . . . Triggered . | . . . Machines | -11 -10 -9 ---------- Run | Jun Mat Mat Machines Disabled 1 | . . 1 Max in Single Turn 1 | . . 1 Machines Repaired . | . . . Machines Sabotaged . | . . . Overloaded Fab Kills . | . . . Hacking | -11 -10 -9 --------- Run | Jun Mat Mat Machines Accessed 15 | . 6 9 Terminals 13 | . 6 7 Fabricators . | . . . Repair Stations 2 | . . 2 Recycling Units . | . . . Scanalyzers . | . . . Garrison Access . | . . . Total Hacks 49 | . 23 26 Successful 20 | . 9 11 Failed 28 | . 13 15 Catastrophic 4 | . . 4 Database Lockouts 1 | . 1 . Manual 34 | . 16 18 Terminals 43 | . 23 20 Fabricators . | . . . Repair Stations 6 | . . 6 Recycling Units . | . . . Scanalyzers . | . . . Garrison Access . | . . . Terminal Hacks 10 | . 5 5 Robot Analysis 2 | . 1 1 Prototype ID Bank 2 | . 1 1 Terminal Index 1 | . . 1 Unreport Threat 2 | . 1 1 Dispatch Records 1 | . 1 . Hauler Manifests 1 | . . 1 Zone Layout 1 | . 1 . Fabricator Hacks . | . . . Repair Station Hacks 3 | . . 3 Scan Component 2 | . . 2 Repair 1 | . . 1 Recycling Unit Hacks . | . . . Scanalyzer . | . . . Garrison Access Hacks . | . . . Unauthorized Hacks 7 | . 4 3 Terminals 7 | . 4 3 Assimilate 1 | . . 1 Botnet 3 | . 2 1 Operators 3 | . 2 1 Fabricators . | . . . Repair Stations . | . . . Recycling Units . | . . . Scanalyzers . | . . . Garrison Access . | . . . Data Cores Recovered . | . . . Used . | . . . Hacking Detections 11 | . 5 6 Full Trace Events 1 | . . 1 Feedback Events . | . . . Feedback Blocked . | . . . Robot Schematics Acquired . | . . . Robots Built . | . . . Authchips . | . . . Time . | . . . Total Robot Build Rating . | . . . Part Schematics Acquired . | . . . Parts Built . | . . . Authchips . | . . . Time . | . . . Total Part Build Rating . | . . . Parts Repaired 1 | . . 1 Time 26 | . . 26 Parts Recycled . | . . . Recycled Matter . | . . . Retrieved Matter . | . . . Retrieved Components . | . . . Parts Scanalyzed . | . . . Part Schematics Acquired . | . . . Parts Damaged . | . . . Bothacking | -11 -10 -9 ------------ Run | Jun Mat Mat Used RIF Installer . | . . . Robots Hacked . | . . . Non-combat . | . . . Combat . | . . . Robot Hacks Applied . | . . . Relay Couplers Released . | . . . Fabnet Peak Effective % . | . . . Robots Rewired . | . . . Allies Hacked . | . . . Hacks Repelled . | . . . Allies | -11 -10 -9 -------- Run | Jun Mat Mat Total Allies 1 | . . 1 Largest Group 1 | . . 1 Highest-Rated Group 10 | . . 10 Highest-Rated Ally 10 | . . 10 Total Orders . | . . . Ally Attacks . | . . . Total Damage . | . . . Kills . | . . . Allies Corrupted . | . . . Allies Melted . | . . . Intel | -11 -10 -9 ------- Run | Jun Mat Mat Robot Analysis Total 2 | . 1 1 Derelict Logs Recovered . | . . . Drone Launches . | . . . Drone Recoveries . | . . . Exploration | -11 -10 -9 ------------- Run | Jun Mat Mat Turns Passed 3678 | 2 1973 1703 Spaces Moved 1543 | 1 755 787 Core . | . . . Treads 974 | . 187 787 Legs 569 | 1 568 . Wheels . | . . . Hover . | . . . Flight . | . . . Fastest Speed 120 | 120 120 160 Average Speed 193 | 120 227 160 Slowest Speed 400 | 120 400 160 Overloaded Moves . | . . . Propulsion Burnouts . | . . . Robots Hopped . | . . . Cave-ins Triggered . | . . . Exploration Rate (%) 51 | 2 78 74 Regions Visited 2 Branch Regions . Pre-discovered Areas . | . . . Known Exits Taken . | . . . Unknown Exits Taken 2 | 1 1 . Scrap Searched . | . . . Spaces Dug 3 | . . 3 Terrain Destroyed 3 | . . 3 Melee 3 | . . 3 Projectile . | . . . AOE . | . . . Terrain Rammed . | . . . Walls Destroyed . | . . . Machines Disabled . | . . . Actions | -11 -10 -9 --------- Run | Jun Mat Mat Total 1977 | 1 894 1082 Wait 130 | . 17 113 Move 1541 | . 754 787 Hop . | . . . Pick Up 52 | . 24 28 Fast Attach 9 | . 4 5 Attach 7 | . 1 6 Detach . | . . . Swap 25 | 1 8 16 Drop 49 | . 19 30 Fire 131 | . 59 72 Melee 21 | . . 21 Ram . | . . . Kick 6 | . 6 . Crush 6 | . 2 4 Escape Stasis . | . . . Rewire . | . . . Trap . | . . . Miscellaneous . | . . . Route ------- -11/Junkyard -10/Materials (discovered 4 exits: *Mat x3 / [*Min]) -9/Materials (discovered 4 exits: [*Mat x3] / [*Min]) History --------- Turn | Location | Event 3 | -11/Junkyard | Discovered new exit (range 0) 3 | -11/Junkyard | Entered Materials 68 | -10/Materials | Discovered new exit (range 15) 136 | -10/Materials | Central database locked down 283 | -10/Materials | Discovered new exit (range 13) 318 | -10/Materials | Build established: Mutant 496 | -10/Materials | Discovered new exit (range 17) 1924 | -10/Materials | Discovered new exit (range 8) 1976 | -10/Materials | Entered another Materials area 1976 | -9/Materials | Evolved 2 slots: Propulsion x1, Utility x1 2209 | -9/Materials | Lost 3 parts (2n1w) 2487 | -9/Materials | Discovered new exit (range 5) 2800 | -9/Materials | Discovered new exit (range 13) 2914 | -9/Materials | Repaired Lgt. Treads 2958 | -9/Materials | Discovered new exit (range 11) 3563 | -9/Materials | Discovered new exit (range 16) 3599 | -9/Materials | Build established: Scavenger-Mutant 3679 | -9/Materials | Self-destructed Last Messages --------------- 03544_ Acquired Rocket Launcher. 03559_ Sneak attack on T-07 Excavator. 03559_ T-07 Excavator destroyed. 03563_ EXIT=FOUND 03581_ System corrupted: Substantial component data lost. 03600_ Dropped Datajack. 03600_ Acquired Imp. Datajack. 03603_ Dropped Flight Unit. 03605_ Acquired Prototype Hover Unit. 03639_ R-06 Scavenger collects Unknown Device. 03642_ System corrupted: Matter fused (-9). 03643_ R-06 Scavenger collects Wheel. 03657_ Lgt. Armor Plating destroyed. 03659_ R-06 Scavenger collects Imp. Terrain Scanner. 03660_ Critical hit (Burn: +37). 03663_ R-06 Scavenger collects Wheel. 03665_ Y-45 Defender destroyed. 03669_ Acquired 4 matter. 03672_ Dropped Lgt. Treads. 03674_ Acquired 10 matter. Map ----- +----------------------------------------------------+ | | | | | | | | | | | | | | | | | | | | | | | | | | | | | | | | | ?????????????????######????###########??? | | ??????????# ?? #????# #??? | | ??????????# """ ""#????# #??? | | ??????????# """"" T"#????# #??? | | ??????????# """"" ""#????# #??? | | ??????????# """"" #????#####+#####??? | | ?????????## """ #????????#[######## | | ?????????# =% #????????#[# ]]] | | ?????????#######/###############%# ]]] | | ????????????# @! %+ =[ ] | | ????????????# < #####[# [ | | ????????????# #???#!######## | | ????????????########### ###?#[ | | ??????????????????????# /===#?########## | | ??????????????????????#!!=/ #??????????? | | ??????????????????????#!!// #???????#### | | ??????????????????????########???????# | | ?????????????????????????????????????#"" | | ?????????????????????????????????????#"Y | | ?????????????????????????????????????#"" | | ????#########????????????????????????# | | ????# #????????????????????????# | | ????# #???????????????????######### | | ????# ###??????????##?????# "T" | | ????# "T" + #?????##### #?????# | | ????# # #?????# #??????# [ | | ????###+##+## #?????# #??????# | | ??????# #??#### =#?###### | | ??????# ####??# [ #?# !### """ | | ??????# #?????# ##### #?# !##=""" | | ??????# #?????# #???# ### !## """ | | ??????# #?????# #???# !## | | ??????# #?????# #???# !########## | | ??????# #?????# #???# !##????????? | +----------------------------------------------------+ Best States ------------- Heat Dissipation 50 Energy Generation 12 Energy Capacity 265 Matter Stores 300 Matter Capacity 300 Sight Range 16 Terrain Scan Density 10 Armor Coverage 150 Evasion (%) 55 Targeting Accuracy 5 Recoil Reduction 3 Item Schematics ----------------- None Robot Schematics ------------------ None Fabricated ------------ Nothing Alien Tech Used ----------------- None Achievements -------------- None Challenges ------------ None Game ------ Seed ReflectiveMolecularMatter Manual? 0 Play Time 00:23:25 Cumulative 854.7 hours Start 2023.08.30 @ 20:09:30 End 2023.08.30 @ 20:24:52 Sessions 1 Manual Loads 0 Difficulty Rogue Special Mode None Game No. 1287 Rogue 1287 Adventurer 0 Explorer 0 Win Type - Total 81 Types 47/1/14/14/4/0/0/1/0 Lore% 92 Gallery% 92 Achievement% 85 Wizard Run 0 Options --------- ASCII 1 Keyboard 0 Movement Numpad Keybinds 0 Fullscreen 0 Font 14/SmallcapsGlow Map View 76x50 Tactical HUD 1 Map Filters NONE Filters NONE Steam 1 RUN: 0b7270a5-2c96-472b-a1e2-cf3b27c5c62a